bitfinex-derivatives/quotes_SOLF0:USTF0_20241231
["timestamp","ask_amount","ask_price","bid_price","bid_amount"]
[1735654609171,7.70303056,197.46,197.45,103.98556278]
[1735654609864,7.70303056,197.46,197.39,507.82787664]
[1735654609865,7.70303056,197.46,197.39,27.11413591]
[1735654610067,7.70303056,197.42,197.4,4.78680196]
[1735654610257,7.70303056,197.42,197.41,4.78680196]
[1735654610664,7.70303056,197.42,197.39,20.85453591]
[1735654610861,7.70303056,197.4,197.39,20.85453591]
[1735654611173,10.78303056,197.4,197.39,25.6410846]
[1735654611563,10.78303056,197.4,197.37,20.85453591]
[1735654612463,10.78303056,197.4,197.34,5.46]
[1735654612669,10.78303056,197.4,197.35,4.78173469]
[1735654613065,10.78303056,197.4,197.36,4.78173469]
[1735654613366,10.78303056,197.4,197.34,2.923]
[1735654613568,10.78303056,197.4,197.35,4.7807043]
[1735654613767,10.78303056,197.4,197.35,7.3176043]
[1735654614071,10.78303056,197.4,197.36,4.7807043]
[1735654614462,10.78303056,197.4,197.37,4.7807043]
[1735654614660,10.78303056,197.4,197.36,2.5367]
[1735654615166,10.78303056,197.4,197.34,10.62603056]
[1735654615372,7.70303056,197.4,197.35,4.77789456]
[1735654615768,7.70303056,197.4,197.36,4.77789456]
[1735654616266,7.70303056,197.4,197.34,10.62603056]
[1735654616470,7.70303056,197.4,197.34,2.923]
[1735654616680,7.70303056,197.4,197.35,4.77683057]
[1735654617074,7.70303056,197.4,197.36,4.77683057]
[1735654617264,7.70303056,197.4,197.34,2.923]
[1735654617477,7.70303056,197.4,197.34,10.62603056]
[1735654617669,7.70303056,197.4,197.33,287.0]
[1735654617670,7.70303056,197.35,197.33,287.0]
[1735654617868,3.08,197.34,197.31,20.85453591]
[1735654618110,7.70303056,197.32,197.31,20.85453591]
[1735654618475,7.70303056,197.32,197.29,20.85453591]
[1735654618679,7.70303056,197.3,197.29,20.85453591]
[1735654620080,7.70303056,197.3,197.19,10.91053056]
[1735654620273,7.70303056,197.25,197.19,3.2075]
[1735654621076,7.70303056,197.25,197.2,290.0915]
[1735654621467,7.70303056,197.25,197.2,3.0915]
[1735654621674,7.70303056,197.23,197.2,3.0915]
[1735654622076,7.70303056,197.23,197.17,289.9369]
[1735654622373,7.70303056,197.21,197.17,289.9369]
[1735654623082,7.70303056,197.19,197.17,287.0]
[1735654623281,7.70303056,197.19,197.15,3.2117]
[1735654623481,3.08,197.22,197.14,20.85453591]
[1735654623482,7.70303056,197.16,197.14,20.85453591]
[1735654623677,7.70303056,197.16,197.12,3.0697]
[1735654624076,3.1756,197.27,197.12,297.77273056]
[1735654624278,7.70303056,197.2,197.14,7.70303056]
[1735654625479,7.70303056,197.2,197.16,2.5394]
[1735654625877,7.70303056,197.2,197.12,297.77273056]
[1735654626089,7.70303056,197.18,197.12,297.77273056]
[1735654626279,7.70303056,197.18,197.12,287.0]
[1735654626684,7.70303056,197.16,197.12,287.0]
[1735654627984,7.70303056,197.18,197.12,287.0]
[1735654628188,7.70303056,197.18,197.12,289.5398]
[1735654628384,7.70303056,197.18,197.11,293.0628]
[1735654629381,7.70303056,197.14,197.11,290.0184]
[1735654629589,7.70303056,197.12,197.1,7.37493791]
[1735654629888,7.70303056,197.12,197.06,287.0]
[1735654630080,7.70303056,197.12,197.07,2.5405]
[1735654630386,7.70303056,197.12,197.04,294.70303056]
[1735654630981,7.70303056,197.1,197.04,287.0]
[1735654632787,7.70303056,197.06,197.02,3.0908]
[1735654633888,7.70303056,197.03,197.02,3.0908]
[1735654634083,7.70303056,197.03,196.97,287.0]
[1735654634289,7.70303056,197.01,196.97,287.0]
[1735654634792,7.70303056,197.0,196.97,287.0]
[1735654634988,7.70303056,197.0,196.98,2.5416]
[1735654635191,7.70303056,197.0,196.95,9.4277]
[1735654635387,7.70303056,197.02,196.95,17.13073056]
[1735654636187,7.7147688,197.02,196.95,9.4277]
[1735654636392,7.7147688,197.0,196.97,2.5417]
[1735654636690,7.7147688,197.0,196.95,9.4277]
[1735654636881,12.02722379,197.03,196.95,9.4277]
[1735654637084,12.02722379,197.03,196.98,2.5417]
[1735654637279,12.02722379,197.03,196.95,9.4277]
[1735654638086,12.02722379,197.0,196.95,9.4277]
[1735654638487,3.14,196.99,196.95,3.1533]
[1735654638791,3.14,196.99,196.93,287.0]
[1735654638990,3.14,196.99,196.93,2.5422]
[1735654639186,3.14,196.99,196.89,290.1451]
[1735654639489,12.02722379,196.97,196.9,2.5427]
[1735654639997,12.02722379,196.97,196.91,2.5426]
[1735654640292,12.02722379,196.97,196.89,290.1451]
[1735654640687,3.14,196.99,196.89,290.1451]
[1735654641293,3.14,196.99,196.94,2.5422]
[1735654641704,12.02722379,196.97,196.94,2.5422]
[1735654642488,12.02722379,196.97,196.89,290.1451]
[1735654642993,12.02722379,196.97,196.94,2.5421]
[1735654643393,12.02722379,197.0,196.89,290.1451]
[1735654644593,15.16722379,197.0,196.89,290.1451]
[1735654645693,15.16722379,197.0,196.95,2.542]
[1735654646892,12.02722379,196.97,196.93,2.5422]
[1735654647195,12.02722379,196.97,196.89,290.1451]
[1735654647592,12.02722379,196.97,196.93,2.5422]
[1735654647894,12.02722379,196.97,196.89,290.1451]
[1735654648092,12.02722379,196.97,196.91,2.5426]
[1735654648296,12.02722379,196.97,196.89,290.1451]
[1735654648687,12.02722379,196.94,196.89,3.1451]
[1735654648894,15.16722379,196.94,196.89,3.1451]
[1735654649196,15.16722379,196.94,196.89,2.5429]
[1735654649394,15.16722379,196.94,196.86,20.85453591]
[1735654649789,15.16722379,196.94,196.85,2.9804]
[1735654650396,15.16722379,196.94,196.89,2.5428]
[1735654650792,15.16722379,196.94,196.85,2.9804]
[1735654650988,15.16722379,196.94,196.93,2.5424]
[1735654651195,3.14,196.96,196.85,293.1204]
[1735654651393,12.02722379,197.0,196.88,12.02722379]
[1735654651589,15.16722379,197.0,196.91,287.0]
[1735654652301,12.02722379,197.03,196.92,293.3358]
[1735654652494,12.02722379,197.03,196.93,290.1947]
[1735654652791,12.02722379,197.03,197.0,2.5414]
[1735654652996,12.02722379,197.03,196.93,290.1947]
[1735654653297,12.02722379,197.03,196.94,41.39535563]
[1735654653596,12.02722379,197.03,197.0,2.5413]
[1735654653800,12.02722379,197.03,196.94,328.39535563]
[1735654654589,12.02722379,197.03,196.99,2.5415]
[1735654655803,12.02722379,197.03,197.02,2.5412]
[1735654656000,3.14,197.04,197.02,2.5412]
[1735654656491,12.02722379,197.06,197.02,2.5412]
[1735654656726,15.16722379,197.06,197.03,2.541]
[1735654656893,12.02722379,197.06,196.98,20.85453591]
[1735654657096,15.16722379,197.06,196.98,20.85453591]
[1735654657298,12.02722379,197.06,196.98,20.85453591]
[1735654657499,15.16722379,197.06,196.98,307.85453591]
[1735654657803,15.16722379,197.06,197.05,2.5408]
[1735654658604,12.02722379,197.06,197.05,2.5408]
[1735654658807,3.14,197.1,197.06,2.5405]
[1735654659109,3.14,197.1,197.01,6.1816]
[1735654659610,3.14,197.1,197.05,2.5407]
[1735654659818,3.14,197.1,197.05,23.39523591]
[1735654660324,3.14,197.1,197.06,2.5406]
[1735654660511,12.02722379,197.11,197.05,20.85453591]
[1735654660808,15.16722379,197.14,197.05,307.85453591]
[1735654661339,15.16722379,197.14,197.06,2.5407]
[1735654661511,15.16722379,197.14,197.05,307.85453591]
[1735654661910,15.16722379,197.14,197.1,2.5401]
[1735654662512,15.16722379,197.14,197.05,362.79990473]
[1735654663011,12.02722379,197.14,197.11,2.5399]
[1735654663516,12.02722379,197.14,197.12,4.74860452]
[1735654663812,12.02722379,197.14,197.09,75.79990473]
[1735654664109,12.02722379,197.14,197.1,4.75204181]
[1735654664304,12.02722379,197.14,197.11,4.75204181]
[1735654664514,12.02722379,197.14,197.09,75.79990473]
[1735654664706,12.02722379,197.1,197.09,75.79990473]
[1735654665407,12.02722379,197.1,197.06,365.34060473]
[1735654665711,12.02722379,197.1,197.06,362.79990473]
[1735654665911,12.02722379,197.1,197.07,2.5404]
[1735654666105,12.02722379,197.1,197.06,362.79990473]
[1735654666308,12.02722379,197.13,197.06,362.79990473]
[1735654666509,12.02722379,197.13,197.08,2.5404]
[1735654666713,12.02722379,197.13,197.07,121.30596131]
[1735654667307,12.02722379,197.13,197.09,2.5402]
[1735654667511,12.02722379,197.13,197.07,121.30596131]
[1735654667716,12.02722379,197.13,197.08,41.53910708]
[1735654668917,12.02722379,197.1,197.08,41.53910708]
[1735654669215,12.02722379,197.1,197.07,27.80618069]
[1735654670115,12.02722379,197.1,197.07,20.85453591]
[1735654670337,12.02722379,197.1,197.06,27.80618069]
[1735654671414,12.02722379,197.1,197.03,314.80618069]
[1735654672614,12.02722379,197.1,197.04,4.13865718]
[1735654673019,3.1,197.12,197.04,4.13865718]
[1735654673210,15.12722379,197.13,197.04,4.13865718]
[1735654673718,15.12722379,197.13,197.05,4.13865718]
[1735654674513,12.02722379,197.13,197.05,4.13865718]
[1735654674820,15.12722379,197.13,197.06,4.13865718]
[1735654675410,15.12722379,197.13,197.08,2.5403]
[1735654676719,15.12722379,197.13,197.05,289.5407]
[1735654677013,15.12722379,197.13,197.05,287.0]
[1735654677517,15.12722379,197.13,197.06,2.5407]
[1735654678416,15.12722379,197.13,197.05,287.0]
[1735654678417,12.02722379,197.1,197.05,287.0]
[1735654678634,12.02722379,197.1,197.01,300.13324478]
[1735654679015,12.02722379,197.07,197.01,300.13324478]
[1735654679516,91.03280242,197.15,197.01,300.13324478]
[1735654679517,86.17370242,197.15,197.01,6.1816]
[1735654679719,24.0,197.31,197.13,299.02722379]
[1735654680023,28.96280548,197.32,197.3,301.56482379]
[1735654680222,28.96280548,197.32,197.31,4.70786223]
[1735654680721,141.12251372,197.35,197.34,289.5371]
[1735654681045,3.0414,197.5,197.42,2.536]
[1735654681225,3.1,197.48,197.39,12.02722379]
[1735654681417,3.1,197.48,197.43,4.70786223]
[1735654681616,3.1,197.48,197.44,4.70786223]
[1735654681821,3.1,197.48,197.47,54.94536882]
[1735654682013,218.06686441,197.52,197.45,49.99638513]
[1735654682423,218.06686441,197.52,197.47,45.2885229]
[1735654682615,218.06686441,197.52,197.5,136.94972718]
[1735654682816,147.30872363,197.52,197.51,127.08231875]
[1735654683024,85.77325277,197.52,197.51,117.38611875]
[1735654683233,85.77325277,197.52,197.51,35.5923229]
[1735654683618,74.45149306,197.52,197.51,35.5923229]
[1735654684021,22.83167536,197.53,197.51,78.74940259]
[1735654684629,3.1,197.53,197.51,43.15707969]
[1735654684831,19.73167536,197.56,197.51,43.15707969]
[1735654685033,3.1,197.55,197.51,43.15707969]
[1735654685629,19.73167536,197.56,197.51,43.15707969]
[1735654685925,3.1,197.56,197.51,43.15707969]
[1735654686133,3.0389,197.58,197.51,43.15707969]
[1735654686333,3.1,197.56,197.51,43.15707969]
[1735654686831,3.0389,197.58,197.51,43.15707969]
[1735654687022,3.1,197.58,197.51,43.15707969]
[1735654687635,3.1,197.58,197.56,2.5342]
[1735654688738,3.1,197.58,197.44,306.73167536]
[1735654689337,3.1,197.58,197.56,2.5342]
[1735654690835,3.1,197.58,197.44,306.73167536]
[1735654691345,3.1,197.58,197.56,2.5342]
[1735654693639,3.1,197.58,197.57,2.5341]
[1735654693944,119.73167536,197.6,197.49,3.18]
[1735654694133,119.73167536,197.6,197.59,2.5339]
[1735654695844,100.0,197.6,197.59,2.5339]
[1735654696838,100.0,197.6,197.57,2.534]
[1735654697039,100.0,197.6,197.5,290.1457]
[1735654697441,100.0,197.6,197.58,2.534]
[1735654697740,100.0,197.6,197.5,290.1457]
[1735654700948,100.0,197.6,197.58,2.534]
[1735654701143,100.0,197.6,197.5,290.1457]
[1735654701542,100.0,197.6,197.56,2.5342]
[1735654702056,100.0,197.6,197.58,2.534]
[1735654702252,100.0,197.6,197.5,290.1457]
[1735654703644,100.0,197.6,197.55,2.5343]
[1735654704548,100.0,197.6,197.56,2.5342]
[1735654704949,111.95874006,197.6,197.56,2.5342]
[1735654705448,111.95874006,197.6,197.5,290.1457]
[1735654705646,111.95874006,197.6,197.5,287.0]
[1735654706959,111.95874006,197.6,197.55,2.5342]
[1735654711851,111.95874006,197.6,197.5,287.0]
[1735654712053,11.95874006,197.57,197.5,287.0]
[1735654712260,3.18,197.56,197.5,287.0]
[1735654712458,3.18,197.56,197.52,2.5348]
[1735654713354,11.95874006,197.57,197.51,4.22118382]
[1735654713551,3.18,197.58,197.55,2.5343]
[1735654714952,3.18,197.58,197.56,128.256612]
[1735654715555,3.18,197.58,197.56,130.790812]
[1735654715756,3.18,197.58,197.56,128.256612]
[1735654715954,3.18,197.58,197.55,472.70611182]
[1735654716659,3.18,197.58,197.55,475.24041182]
[1735654716955,3.18,197.58,197.55,472.70611182]
[1735654718753,111.95874006,197.6,197.55,472.70611182]
[1735654718956,3.18,197.59,197.55,472.70611182]
[1735654719754,100.0,197.6,197.55,475.24041182]
[1735654719959,103.18,197.6,197.55,472.70611182]
[1735654720155,100.0,197.6,197.55,472.70611182]
[1735654721663,100.0,197.6,197.56,856.64813399]
[1735654722155,11.95874006,197.59,197.56,856.64813399]
[1735654722759,11.95874006,197.59,197.56,731.69535409]
[1735654723661,11.95874006,197.59,197.57,4.67413938]
[1735654724061,11.95874006,197.59,197.58,4.67413938]
[1735654724261,11.95874006,197.59,197.56,258.98924227]
[1735654726163,100.0,197.6,197.56,258.98924227]
[1735654726365,115.07874006,197.6,197.56,258.98924227]
[1735654727665,9.31681269,197.59,197.57,2.534]
[1735654728163,115.07874006,197.6,197.57,2.534]
[1735654728665,115.07874006,197.6,197.56,734.22955409]
[1735654729467,111.95874006,197.6,197.56,734.22955409]
[1735654729760,115.07874006,197.6,197.56,731.69535409]
[1735654731163,11.95874006,197.57,197.56,603.38709068]
[1735654732156,103.12,197.6,197.56,603.38709068]
[1735654732468,11.95874006,197.57,197.5,2.5349]
[1735654734262,11.95874006,197.57,197.51,2.5348]
[1735654734862,11.95874006,197.57,197.48,573.09103552]
[1735654736565,11.95874006,197.57,197.48,286.09103552]
[1735654737576,11.95874006,197.53,197.48,286.09103552]
[1735654737770,3.12,197.52,197.48,286.09103552]
[1735654738670,3.12,197.52,197.47,2.5354]
[1735654740068,3.12,197.53,197.43,298.95874006]
[1735654740471,3.12,197.53,197.52,2.5348]
[1735654740679,3.12,197.56,197.46,11.95874006]
[1735654740971,3.12,197.56,197.47,3.0355]
[1735654741375,3.12,197.56,197.52,2.5347]
[1735654741680,3.12,197.56,197.47,290.0355]
[1735654742073,15.07874006,197.57,197.47,290.0355]
[1735654742576,15.07874006,197.57,197.53,2.5345]
[1735654742878,15.07874006,197.57,197.47,290.0355]
[1735654743073,15.07874006,197.57,197.51,2.5348]
[1735654743870,15.07874006,197.57,197.47,290.0355]
[1735654744073,15.07874006,197.57,197.53,2.5346]
[1735654745679,3.12,197.57,197.53,2.5346]
[1735654746481,3.12,197.57,197.52,2.5347]
[1735654746782,15.07874006,197.57,197.47,290.0355]
[1735654746971,15.07874006,197.57,197.5,2.535]
[1735654747379,15.07874006,197.57,197.47,290.0355]
[1735654747780,11.95874006,197.54,197.47,290.0355]
[1735654747977,11.95874006,197.54,197.48,2.5353]
[1735654748484,11.95874006,197.54,197.47,287.0]
[1735654748690,11.95874006,197.54,197.45,2.5356]
[1735654748880,11.95874006,197.54,197.42,296.76332932]
[1735654749785,11.95874006,197.51,197.46,2.5355]
[1735654750093,3.12,197.5,197.46,2.5355]
[1735654750480,3.12,197.5,197.44,2.5358]
[1735654751279,3.12,197.5,197.45,2.5356]
[1735654751780,3.12,197.5,197.42,289.9711]
[1735654751981,11.95874006,197.48,197.42,287.0]
[1735654753581,11.95874006,197.48,197.44,2.5357]
[1735654753776,11.95874006,197.48,197.42,287.0]
[1735654754282,11.95874006,197.48,197.43,2.5359]
[1735654754484,11.95874006,197.48,197.42,287.0]
[1735654755681,11.95874006,197.51,197.42,287.0]
[1735654755882,3.08,197.5,197.42,287.0]
[1735654756083,3.08,197.5,197.48,2.5353]
[1735654756385,3.08,197.5,197.36,6.3999]
[1735654756386,11.96557939,197.49,197.34,305.75780871]
[1735654756587,3.08,197.5,197.37,6.2182]
[1735654756781,15.04557939,197.5,197.37,6.2182]
[1735654756985,7.6798849,197.47,197.39,7.6798849]
[1735654757287,7.6798849,197.47,197.43,2.5358]
[1735654757788,61.22517764,197.56,197.41,7.6798849]
[1735654758087,3.08,197.55,197.43,294.6798849]
[1735654758283,7.6798849,197.5,197.43,294.6798849]
[1735654758598,7.6798849,197.5,197.46,2.5355]
[1735654759083,3.08,197.53,197.45,7.6798849]
[1735654759294,7.6798849,197.52,197.45,7.6798849]
[1735654760181,7.6798849,197.52,197.46,2.9689]
[1735654760881,7.6798849,197.52,197.48,2.5352]
[1735654761194,7.6798849,197.52,197.46,2.9689]
[1735654761385,7.6798849,197.52,197.46,289.9689]
[1735654761691,3.08,197.53,197.46,289.9689]
[1735654762090,7.6798849,197.54,197.51,2.5348]
[1735654764486,7.6798849,197.52,197.46,289.9689]
[1735654764694,7.6798849,197.5,197.46,289.9689]
[1735654765196,7.6798849,197.48,197.46,289.9689]
[1735654765385,7.6798849,197.48,197.46,2.9689]
[1735654765791,7.6798849,197.5,197.48,2.5353]
[1735654765991,7.6798849,197.5,197.46,2.9689]
[1735654766890,7.6798849,197.5,197.49,2.5351]
[1735654767090,7.6798849,197.52,197.46,2.9689]
[1735654767388,7.6798849,197.52,197.46,297.6487849]
[1735654767598,7.6798849,197.54,197.51,287.0]
[1735654768292,3.08,197.58,197.54,2.5344]
[1735654769191,11.96127377,197.57,197.54,2.5344]
[1735654771389,11.96127377,197.57,197.51,287.0]
[1735654771596,11.96127377,197.57,197.55,2.5343]
[1735654773398,11.96127377,197.57,197.52,2.5347]
[1735654774201,11.96127377,197.57,197.53,2.5346]
[1735654774390,11.96127377,197.57,197.51,287.0]
[1735654774801,11.96127377,197.57,197.54,2.5345]
[1735654778298,11.96127377,197.57,197.51,287.0]
[1735654779508,11.96127377,197.57,197.53,2.5345]
[1735654779802,11.96127377,197.57,197.51,287.0]
[1735654780703,100.0,197.6,197.51,287.0]
[1735654781001,100.0,197.6,197.59,2.5339]
[1735654782807,100.0,197.6,197.52,289.9797]
[1735654783713,100.0,197.6,197.59,2.5339]
[1735654786707,100.0,197.6,197.57,2.534]
[1735654786912,100.0,197.6,197.52,289.9797]
[1735654787506,11.96127377,197.58,197.52,289.9797]
[1735654787907,11.96127377,197.58,197.55,2.5343]
[1735654788309,111.95785529,197.6,197.55,2.5343]
[1735654789312,7.67383986,197.56,197.52,287.0]
[1735654789614,7.67383986,197.54,197.48,287.0]
[1735654789816,7.67383986,197.52,197.48,287.0]
[1735654790004,7.67383986,197.5,197.48,287.0]
[1735654793015,7.67383986,197.5,197.43,362.97213668]
[1735654793211,7.67383986,197.45,197.43,362.97213668]
[1735654794411,7.67383986,197.45,197.43,365.50803668]
[1735654795009,3.0912,197.54,197.45,2.5356]
[1735654795218,3.08,197.53,197.43,362.97213668]
[1735654795410,7.67383986,197.49,197.43,362.97213668]
[1735654795716,3.08,197.53,197.44,7.67383986]
[1735654795909,7.67383986,197.52,197.44,7.67383986]
[1735654796110,7.67383986,197.54,197.46,294.67383986]
[1735654796425,6.2148,197.56,197.46,294.67383986]
[1735654796613,7.67383986,197.54,197.46,294.67383986]
[1735654796819,7.67383986,197.54,197.48,7.67383986]
[1735654797402,7.67383986,197.54,197.53,289.5345]
[1735654798209,7.67306288,197.55,197.53,287.0]
[1735654798418,7.67306288,197.55,197.54,2.5344]
[1735654798813,7.67306288,197.55,197.53,287.0]
[1735654799315,11.96341686,197.55,197.53,287.0]
[1735654799506,3.08,197.54,197.53,287.0]
[1735654801416,3.08,197.54,197.53,277.301]
[1735654802113,3.08,197.54,197.42,278.6935]
[1735654802312,11.96341686,197.52,197.42,278.6935]
[1735654802915,11.96341686,197.52,197.44,2.5358]
[1735654803110,11.96341686,197.52,197.42,275.6509]
[1735654803325,11.96341686,197.49,197.4,272.4515]
[1735654803506,3.08,197.48,197.4,274.9877]
[1735654804112,3.08,197.48,197.41,2.5361]
[1735654807415,3.08,197.48,197.4,272.4515]
[1735654807609,3.08,197.49,197.4,272.4515]
[1735654808318,3.08,197.49,197.44,2.5357]
[1735654808823,3.08,197.49,197.4,272.4515]
[1735654809120,3.08,197.49,197.43,2.5359]
[1735654809619,3.08,197.49,197.4,284.41491686]
[1735654809819,11.96341686,197.52,197.4,284.41491686]
[1735654810015,15.04341686,197.52,197.4,284.41491686]
[1735654810921,15.04341686,197.52,197.45,2.5356]
[1735654811118,3.08,197.51,197.45,2.5356]
[1735654811421,3.08,197.51,197.4,284.41491686]
[1735654811621,3.08,197.51,197.43,2.5359]
[1735654811818,3.08,197.51,197.43,274.9874]
[1735654813516,3.08,197.51,197.44,2.5358]
[1735654814918,3.08,197.51,197.46,2.5355]
[1735654815119,3.08,197.51,197.43,272.4515]
[1735654815520,3.0783,197.55,197.43,284.41491686]
[1735654815521,11.96341686,197.55,197.43,284.41491686]
[1735654815726,3.08,197.54,197.43,284.41491686]
[1735654816023,3.08,197.54,197.5,2.5349]
[1735654816418,11.96341686,197.55,197.45,3.0619]
[1735654817324,11.96341686,197.55,197.5,2.5349]
[1735654817721,11.96341686,197.55,197.45,275.5134]
[1735654818121,11.96341686,197.55,197.51,2.5348]
[1735654818324,3.08,197.56,197.51,2.5348]
[1735654818617,3.08,197.56,197.45,275.5134]
[1735654819422,3.08,197.56,197.48,2.5352]
[1735654819925,7.67670658,197.51,197.47,2.5354]
[1735654820126,7.67670658,197.51,197.45,275.5134]
[1735654820821,7.67670658,197.51,197.46,2.5354]
[1735654822423,7.67670658,197.51,197.47,2.5354]
[1735654823626,7.67670658,197.51,197.45,275.5134]
[1735654824128,7.67670658,197.49,197.46,2.5355]
[1735654824329,7.67670658,197.47,197.4,272.4515]
[1735654824718,7.67670658,197.47,197.42,2.536]
[1735654824925,7.67670658,197.45,197.4,272.4515]
[1735654825732,7.67670658,197.45,197.42,2.536]
[1735654826427,7.67670658,197.47,197.4,272.4515]
[1735654826626,7.67670658,197.47,197.41,7.67670658]
[1735654827933,7.67670658,197.47,197.4,280.12820658]
[1735654828333,7.67670658,197.47,197.44,2.5357]
[1735654828635,7.67670658,197.47,197.4,280.12820658]
[1735654829834,7.67670658,197.47,197.44,2.5357]
[1735654830235,7.67670658,197.47,197.4,280.12820658]
[1735654830529,7.67670658,197.47,197.45,2.5356]
[1735654832235,7.67670658,197.47,197.46,2.5355]
[1735654836336,7.67670658,197.47,197.45,2.5356]
[1735654837337,3.08,197.49,197.45,2.5356]
[1735654837535,3.08,197.49,197.4,280.12820658]
[1735654837738,7.67670658,197.47,197.4,280.12820658]
[1735654838038,7.67670658,197.47,197.46,2.5354]
[1735654842942,2.974,197.51,197.47,2.5353]
[1735654843136,67.30863843,197.55,197.42,7.67670658]
[1735654843439,7.67670658,197.51,197.44,7.67670658]
[1735654843940,7.67670658,197.53,197.46,7.67670658]
[1735654844638,3.08,197.54,197.46,7.67670658]
[1735654844840,7.67670658,197.53,197.46,7.67670658]
[1735654845232,7.67670658,197.53,197.48,2.5353]
[1735654845436,7.67670658,197.53,197.46,7.67670658]
[1735654845633,7.88953504,197.52,197.46,7.88953504]
[1735654846440,7.88953504,197.52,197.51,2.5348]
[1735654848043,7.88953504,197.54,197.53,2.5346]
[1735654850946,7.88953504,197.54,197.47,278.6087]
[1735654852039,67.30863843,197.55,197.47,278.6087]
[1735654852239,7.88953504,197.54,197.53,2.5345]
[1735654853142,3.0278,197.62,197.55,2.5343]
[1735654853440,3.0278,197.62,197.5,280.34103504]
[1735654853646,7.88953504,197.58,197.52,7.88953504]
[1735654853946,7.88953504,197.58,197.57,2.5341]
[1735654854148,7.88953504,197.61,197.54,7.88953504]
[1735654854347,7.88953504,197.61,197.55,3.1751]
[1735654854747,7.88953504,197.61,197.59,2.5339]
[1735654855553,107.88953504,197.6,197.59,2.5339]
[1735654855939,107.88953504,197.6,197.56,2.5342]
[1735654856156,107.88953504,197.6,197.55,3.1751]
[1735654856545,107.88953504,197.6,197.58,2.534]
[1735654856743,107.88953504,197.6,197.55,3.1751]
[1735654856942,7.88953504,197.58,197.55,3.1751]
[1735654857850,7.88953504,197.58,197.52,280.34103504]
[1735654858151,7.88953504,197.58,197.56,2.5341]
[1735654858553,7.88953504,197.58,197.52,280.34103504]
[1735654858750,7.88953504,197.58,197.56,2.5341]
[1735654860248,107.88953504,197.6,197.57,2.5341]
[1735654860448,107.88953504,197.6,197.52,280.34103504]
[1735654860855,107.88953504,197.6,197.59,2.5339]
[1735654861257,100.0,197.6,197.59,2.5339]
[1735654862965,83.5266,197.6,197.59,5.6139]
[1735654863264,21.5266,197.6,197.59,5.6139]
[1735654863463,7.88953504,197.69,197.59,275.5315]
[1735654863763,3.0585,197.7,197.63,7.88953504]
[1735654863960,52.68,197.84,197.67,280.34103504]
[1735654864162,52.68,197.84,197.67,272.4515]
[1735654864163,7.88953504,197.75,197.67,272.4515]
[1735654864460,7.88953504,197.71,197.67,272.4515]
[1735654864666,7.88953504,197.69,197.67,272.4515]
[1735654866563,7.88953504,197.69,197.67,274.9843]
[1735654867566,7.88953504,197.69,197.68,2.5327]
[1735654868266,3.08,197.7,197.69,2.5326]
[1735654868666,12.83820166,197.73,197.69,2.5326]
[1735654869563,0.53199899,197.73,197.71,2.5323]
[1735654870070,0.53199899,197.73,197.63,12.30620267]
[1735654870363,0.53199899,197.73,197.63,284.75770267]
[1735654871776,0.53199899,197.73,197.7,2.5323]
[1735654871972,0.53199899,197.73,197.63,272.4515]
[1735654872177,12.83820166,197.73,197.64,3.08]
[1735654873474,12.83820166,197.73,197.67,2.5327]
[1735654873971,12.83820166,197.73,197.63,272.4515]
[1735654874167,12.83820166,197.73,197.67,2.5328]
[1735654874366,12.83820166,197.73,197.63,272.4515]
[1735654874571,0.53199899,197.73,197.72,2.5322]
[1735654874770,0.53199899,197.73,197.64,12.30620267]
[1735654875769,0.53199899,197.73,197.68,12.30620267]
[1735654875975,0.53199899,197.73,197.72,2.5322]
[1735654876975,12.30620267,197.96,197.85,272.4515]
[1735654877185,18.66570267,197.96,197.86,3.08]
[1735654877480,6.3595,197.96,197.86,287.83770267]
[1735654877675,3.1096,197.98,197.86,287.83770267]
[1735654877971,3.1096,197.98,197.92,2.5296]
[1735654878181,3.1096,197.98,197.86,284.75770267]
[1735654878476,3.1096,197.98,197.87,3.08]
[1735654878775,3.1096,197.98,197.87,275.5315]
[1735654879173,3.1096,197.98,197.91,2.5298]
[1735654879475,3.1096,197.98,197.91,274.9813]